Workbook

Sheet Description (hidden)
A1: Romain Leyh
A2: 3742232000
A4: Het model berekend de kosten van zuivering voor verschillende zuivering apparaten.
A5: Het model is gebaseerd op de WaterStroommodel output en een paar extra input
A7: Keuze voor programmen:
A8: Voor de zuivering alleen wordt de goedkoopste optie gehouden
A9: De kosten van onderhoud zijn op stroombasis berekend
A10: Het is mogelijk de wer te versenellen met een instelling stap afhangelijk van de telers gegevens
A12: Notulen
A13: The description of the pollution must be based on comprehensible criteria for the cultivator
A21: Legenda
B22: info teler | F22: voorwerk van WUR e/o KWR
B23: info uit Waterstromen | F23: berekende kosten
B24: info van toeleveranciers | F24: output voor teler

Sheet Calculator
A1: STAP 1: zuivering lozingswater volgens huidige wet
B3: 1. Inputs
B4: Systeem Inputs | E4: Financiele inputs | I4: Als je de inputs verandert, moet je opnieuw de "Waterstromen importeren" om de berekening van de buffers te laten maken
B5: Oppervlak | C5: ha | D5: 4 | E5: Kosten elektriciteit | F5: €/kWh | G5: 0.07
B6: Rioolbuffer | C6: m3 | D6: 25 | E6: afschrijvingtermijn | F6: Jaren | G6: 10
B7: rioolaansluiting | C7: m3/uur/ha | D7: 0.5 | E7: leenrent | F7: % €/€ | G7: 7
B11: voorfilters | E11: 0 | F11: 1 | G11: 2 | H11: 3 | I11: 4 | J11: 5 | K11: 6 | L11: 7 | M11: 8 | N11: 9 | O11: 10
B12: 0 | C12: Eenheid | D12: Beschrijving
B13: Optimum | C13: m3/uur/ha | D13: =LOOKUP($B$12,$E$11:$O$11,E13:O13) -> 50 | E13: 50 | F13: 100
B14: filters maat | C14: µm | D14: =LOOKUP($B$12,$E$11:$O$11,E14:O14) -> 10 | E14: =G6 -> 10 | F14: 10
B15: Spoelfrequency | C15: keren/uur | D15: =LOOKUP($B$12,$E$11:$O$11,E15:O15) -> 1 | E15: 1 | F15: 0.5
B16: Spoeldebiet | C16: m3/uur | D16: =LOOKUP($B$12,$E$11:$O$11,E16:O16) -> 25 | E16: 25 | F16: 50
B17: Prijs | C17: € | D17: =LOOKUP($B$12,$E$11:$O$11,E17:O17) -> 0 | E17: 0 | F17: 10000
B20: Ontsmetter | E20: 0 | F20: 1 | G20: 2 | H20: 3 | I20: 4 | J20: 5 | K20: 6 | L20: 7 | M20: 8 | N20: 9 | O20: 10
B21: 0 | C21: Eenheid | D21: Beschrijving
B22: Optimum | C22: m3/uur/ha | D22: =LOOKUP($B$21,$E$20:$O$20,E22:O22) -> 0 | E22: =J5 -> 0 | F22: 5 | G22: 0.3 | H22: 7.5 | I22: 0.1 | J22: 6.5 | K22: 5 | L22: 0.3 | M22: 7.5 | N22: 0.1 | O22: 6.5
B23: Prijs | C23: €/ha | D23: 0 | E23: 0 | F23: 500 | G23: 300 | H23: 750 | I23: 250 | J23: 700 | K23: 500 | L23: 300 | M23: 750 | N23: 250 | O23: 700
B24: Temperatuur | C24: °C | D24: 20 | E24: 20 | F24: 20 | G24: 20 | H24: 20 | I24: 20 | J24: 20 | K24: 20 | L24: 20 | M24: 7500 | N24: 2000 | O24: 4800
B25: Kracht | C25: kW.h/m3/ha | D25: 0 | E25: =J6 -> 0 | F25: 20 | G25: 20 | H25: 20 | I25: 20 | J25: 20 | K25: 10 | L25: 10 | M25: 10 | N25: 10 | O25: 10
B26: Producten | C26: €/m3/ha | D26: 0 | E26: =J7 -> 0 | F26: 0.2 | G26: 0.8 | H26: 0.25 | I26: 0.25 | J26: 0.25 | K26: 0.8 | L26: 0.8 | M26: 0.8 | N26: 0.8 | O26: 0.8
B27: Onderhoud | C27: €/m3/ha | D27: 0 | E27: =J8 -> 0 | F27: 0.2 | G27: 0.8 | H27: 0.25 | I27: 0.25 | J27: 0.25 | K27: 0.2 | L27: 0.8 | M27: 0.25 | N27: 0.25 | O27: 0.25
B28: TOC | C28: mg/l | D28: - | E28: -
B29: Redox | C29: mV/l | D29: - | E29: -
B30: licht remmer | C30: % AR | D30: - | E30: -
B31: bio | C31: nm | D31: - | E31: -
B40: 2. Apparaten Beschrijving
B41: 1 | D41: 1 | E41: 2 | F41: 3 | G41: 4 | H41: 5 | I41: 6 | J41: 7 | K41: 8 | L41: 9 | M41: 10 | N41: 11 | O41: 12 | P41: 13 | Q41: 14 | R41: 15 | S41: 16 | T41: 17 | U41: 18 | V41: 19 | W41: 20 | X41: 21 | Y41: 22 | Z41: 23 | AA41: 24 | AB41: 25 | AC41: 26 | AD41: 27 | AE41: 28 | AF41: 29 | AG41: =AF41+1 -> 30 | AH41: =AG41+1 -> 31 | AI41: 32 | AJ41: 33 | AK41: 34 | AL41: 35 | AM41: 36 | AN41: 37 | AO41: 38 | AP41: 39
B42: Zuivering apparaat | D42: Agrozone | J42: Enthoven Techniek | Q42: HortiMaX | Y42: WaterIQ | AG42: Priva | AK42: WaterQ
B43: Techniek | D43: ozon | J43: H2O2+UV | Q43: H2O2+UV | Y43: H2O2+ozon+katalysator | AG43: H2O2 + UV | AK43: H2O2 + UV
B44: Footprint installatie | C44: m2 | D44: 1.2 | E44: 1.8 | F44: 2.8 | G44: 3.2 | H44: 4 | I44: 5.5 | J44: 3.84 | K44: 3.84 | L44: 3.84 | M44: 3.84 | N44: 4.08 | O44: 6.08 | P44: 6.08 | Q44: 1.44 | R44: 1.44 | S44: 1.44 | T44: 1.44 | U44: 1.44 | V44: 2.16 | W44: 2.16 | X44: 2.16 | Y44: 1.7 | Z44: 2.5 | AA44: 3.6 | AB44: 4.3 | AC44: 6.1 | AD44: 8.9 | AE44: 13.2 | AF44: 21.6 | AG44: 3.25 | AH44: 3.25 | AI44: 4.06 | AJ44: 4.06 | AK44: 2.25 | AL44: 2.25 | AM44: 2.25 | AN44: 2.25 | AO44: 3.15 | AP44: 3.15
B45: Capaciteit | C45: m3/uur | D45: 0.7 | E45: 1.2 | F45: 3 | G45: 4 | H45: 6 | I45: 10 | J45: 0.53 | K45: 0.7 | L45: 1.05 | M45: 1.4 | N45: 2.1 | O45: 2.8 | P45: 3.5 | Q45: 0.4 | R45: 0.8 | S45: 1.2 | T45: 1.6 | U45: 2.4 | V45: 3.2 | W45: 4.8 | X45: 6.4 | Y45: 0.48 | Z45: 0.6 | AA45: 1.5 | AB45: 2.5 | AC45: 5 | AD45: 10 | AE45: 20 | AF45: 30 | AG45: 0.75 | AH45: 1.5 | AI45: 2.25 | AJ45: 3 | AK45: 0.75 | AL45: 1.5 | AM45: 2.25 | AN45: 3 | AO45: 3.75 | AP45: 4.5
B46: Prijs (investering) | C46: € | D46: 25995 | E46: 32455 | F46: 71089 | G46: 79134 | H46: 94204 | I46: 116564 | J46: 17900 | K46: 22500 | L46: 28750 | M46: 33750 | N46: 41250 | O46: 48750 | P46: 56250 | Q46: 14250 | R46: 18500 | S46: 22750 | T46: 27000 | U46: 35500 | V46: 44000 | W46: 61000 | X46: 78000 | Y46: 19500 | Z46: 24500 | AA46: 49500 | AB46: 67500 | AC46: 78500 | AD46: 99000 | AE46: 179000 | AF46: 259000 | AG46: 17000 | AH46: 22500 | AI46: 26000 | AJ46: 29500 | AK46: 19725 | AL46: 22725 | AM46: 26725 | AN46: 29725 | AO46: 33725 | AP46: 36725
B47: Elektriciteit | C47: kW.h/m3 | D47: 2.53 | E47: 2 | F47: 1.88 | G47: 1.87 | H47: 1.49 | I47: 1.41 | J47: 2.8 | K47: 2.7 | L47: 2.6 | M47: 2.6 | N47: 2.5 | O47: 2.4 | P47: 2.4 | Q47: 3.1 | R47: 3.1 | S47: 3.1 | T47: 3.1 | U47: 3.1 | V47: 3.1 | W47: 3.1 | X47: 3.1 | Y47: 0.7 | Z47: 0.6 | AA47: 0.5 | AB47: 0.26 | AC47: 0.22 | AD47: 0.15 | AE47: 0.15 | AF47: 0.15 | AG47: 3.6 | AH47: 2.9 | AI47: 2.7 | AJ47: 2.6 | AK47: 1.5 | AL47: 1.4 | AM47: 1.3 | AN47: 1.4 | AO47: 1.3 | AP47: 1.4
B48: Gebruikskosten (H2O2, zuur, etc.) | C48: €/m3 | D48: 0 | E48: 0 | F48: 0 | G48: 0 | H48: 0 | I48: 0 | J48: 0.06 | K48: 0.06 | L48: 0.06 | M48: 0.06 | N48: 0.06 | O48: 0.06 | P48: 0.06 | Q48: 0.29 | R48: 0.29 | S48: 0.29 | T48: 0.29 | U48: 0.29 | V48: 0.29 | W48: 0.29 | X48: 0.29 | Y48: 0.84 | Z48: 0.84 | AA48: 0.84 | AB48: 0.84 | AC48: 0.84 | AD48: 0.84 | AE48: 0.84 | AF48: 0.84 | AG48: 0.4 | AH48: 0.4 | AI48: 0.4 | AJ48: 0.4 | AK48: 0.13 | AL48: 0.13 | AM48: 0.13 | AN48: 0.13 | AO48: 0.13 | AP48: 0.13
B49: Onderhoud | C49: €/jaar | D49: 1050 | E49: 1150 | F49: 2400 | G49: 2800 | H49: 3250 | I49: 4300 | J49: 1190 | K49: 1317 | L49: 1479 | M49: 1602 | N49: 1988 | O49: 2317 | P49: 2577 | Q49: 200 | R49: 200 | S49: 200 | T49: 200 | U49: 250 | V49: 250 | W49: 250 | X49: 300 | Y49: 1000 | Z49: 1200 | AA49: 1375 | AB49: 1375 | AC49: 1750 | AD49: 1750 | AE49: 3500 | AF49: 5250 | AG49: =D62*0.15 -> 109.2046147 | AH49: =D62*0.12 -> 87.36369179 | AI49: =D62*0.11 -> 80.08338414 | AJ49: =D62*0.1 -> 72.80307649 | AK49: 1308 | AL49: 1760 | AM49: 2210 | AN49: 2662 | AO49: 3112 | AP49: 3563
B50: Zuivering buffer | C50: m3 | D50: 51 | E50: 25 | F50: 25 | G50: 25 | H50: 25 | I50: 25 | J50: 73 | K50: 51 | L50: 25 | M50: 25 | N50: 25 | O50: 25 | P50: 25 | Q50: 73 | R50: 51 | S50: 51 | T50: 51 | U50: 51 | V50: 51 | W50: 51 | X50: 51 | Y50: 51 | Z50: 51 | AA50: 51 | AB50: 51 | AC50: 51 | AD50: 51 | AE50: 0 | AF50: 0 | AG50: 51 | AH50: 51 | AI50: 51 | AJ50: 51 | AK50: 51 | AL50: 51 | AM50: 51 | AN50: 51 | AO50: 51 | AP50: 51
B51: Zuivering buffer | C51: € | D51: 4679 | E51: 3400 | F51: 3400 | G51: 3400 | H51: 3400 | I51: 3400 | J51: 5442 | K51: 4679 | L51: 3400 | M51: 3400 | N51: 3400 | O51: 3400 | P51: 3400 | Q51: 5442 | R51: 4679 | S51: 4679 | T51: 4679 | U51: 4679 | V51: 4679 | W51: 4679 | X51: 4679 | Y51: 4679 | Z51: 4679 | AA51: 4679 | AB51: 4679 | AC51: 4679 | AD51: 4679 | AE51: 0 | AF51: 0 | AG51: 4679 | AH51: 4679 | AI51: 4679 | AJ51: 4679 | AK51: 4679 | AL51: 4679 | AM51: 4679 | AN51: 4679 | AO51: 4679 | AP51: 4679
B52: Rioolbuffer | C52: m3 | D52: 0 | E52: 0 | F52: 0 | G52: 0 | H52: 0 | I52: 0 | J52: 0 | K52: 0 | L52: 0 | M52: 0 | N52: 0 | O52: 0 | P52: 0 | Q52: 0 | R52: 0 | S52: 0 | T52: 0 | U52: 0 | V52: 0 | W52: 0 | X52: 0 | Y52: 0 | Z52: 0 | AA52: 0 | AB52: 0 | AC52: 0 | AD52: 0 | AE52: 0 | AF52: 0 | AG52: 0 | AH52: 0 | AI52: 0 | AJ52: 0 | AK52: 0 | AL52: 0 | AM52: 0 | AN52: 0 | AO52: 0 | AP52: 0
B53: Rioolbuffer | C53: € | D53: 0 | E53: 0 | F53: 0 | G53: 0 | H53: 0 | I53: 0 | J53: 0 | K53: 0 | L53: 0 | M53: 0 | N53: 0 | O53: 0 | P53: 0 | Q53: 0 | R53: 0 | S53: 0 | T53: 0 | U53: 0 | V53: 0 | W53: 0 | X53: 0 | Y53: 0 | Z53: 0 | AA53: 0 | AB53: 0 | AC53: 0 | AD53: 0 | AE53: 0 | AF53: 0 | AG53: 0 | AH53: 0 | AI53: 0 | AJ53: 0 | AK53: 0 | AL53: 0 | AM53: 0 | AN53: 0 | AO53: 0 | AP53: 0
Q54: * Gebruikskosten inclusief de kosten (0.16) van het periodiek vervangen van de UV-lampen
B55: Buffers
B56: Volume | C56: m3 | D56: 10 | E56: 25 | F56: 51 | G56: 73 | H56: 113
B57: Prijs | C57: € | D57: 1453.5 | E57: 3400 | F57: 4679 | G57: 5442 | H57: 8880
B59: 3. Resultaat
C60: stromen
B61: Pieklozing | C61: m3/uur | D61: =$K$92*$D$5 -> 17.08682328
B62: Totale lozing | C62: m3 | D62: =$K$93*$D$5 -> 728.0307649 | I62: 1
C63: overzicht
B64: Jaarlijkse kosten overzicht | D64: Agrozone | E64: Enthoven Techniek | F64: HortiMaX | G64: WaterIQ | H64: Priva | I64: WaterQ
B65: Jaar Kosten | D65: Ozone | E65: H2O2+UV | F65: H2O2+UV | G65: H2O2 + O3 + katalysator | H65: H2O2+UV | I65: H2O2+UV
B66: Capaciteit | C66: m3/uur | D66: =IF(D75<=0,"Maatwerk nodig bij deze leverancier",VLOOKUP(D$75,$W$89:$AF$129,2,FALSE)) -> 0.7 | E66: =VLOOKUP(E$75,$W$89:$AF$129,2,FALSE) -> 0.53 | F66: 0.4 | G66: 0.48 | H66: 0.75 | I66: =VLOOKUP(I$75,$W$89:$AF$129,2,FALSE) -> 0.75
B67: Opslag | C67: m3 | D67: =IF(D75<=0,"",VLOOKUP(D$75,$W$89:$AF$129,4,FALSE)) -> 51 | E67: =VLOOKUP(E$75,$W$89:$AF$129,4,FALSE) -> 73 | F67: 73 | G67: 51 | H67: 51 | I67: =VLOOKUP(I$75,$W$89:$AF$129,4,FALSE) -> 51
B68: totale prijs | C68: € | D68: =IF(D75<=0,"",VLOOKUP(D$75,$W$89:$AF$129,3,FALSE)) -> 30674 | E68: =VLOOKUP(E$75,$W$89:$AF$129,3,FALSE) -> 23342 | F68: 19692 | G68: 24179 | H68: 21679 | I68: =VLOOKUP(I$75,$W$89:$AF$129,3,FALSE) -> 24404
C69: jaarlijkse kosten
B70: Afschrijving | C70: € | D70: =IF(D75<=0,"",VLOOKUP(D$75,$W$89:$AF$129,5,FALSE)) -> 3067.4 | E70: =VLOOKUP(E$75,$W$89:$AF$129,5,FALSE) -> 2334.2 | F70: 1969.2 | G70: 2417.9 | H70: 2167.9 | I70: =VLOOKUP(I$75,$W$89:$AF$129,5,FALSE) -> 2440.4
B71: Rente | C71: € | D71: =IF(D75<=0,"",VLOOKUP(D$75,$W$89:$AF$129,6,FALSE)) -> 214.718 | E71: =VLOOKUP(E$75,$W$89:$AF$129,6,FALSE) -> 163.394 | F71: 137.844 | G71: 169.253 | H71: 151.753 | I71: =VLOOKUP(I$75,$W$89:$AF$129,6,FALSE) -> 170.828
B72: Elektriciteit | C72: € | D72: =IF(D75<=0,"",VLOOKUP(D$75,$W$89:$AF$129,7,FALSE)) -> 128.9342485 | E72: =VLOOKUP(E$75,$W$89:$AF$129,7,FALSE) -> 142.6940299 | F72: 157.982676 | G72: 35.67350748 | H72: 183.4637528 | I72: =VLOOKUP(I$75,$W$89:$AF$129,7,FALSE) -> 76.44323032
B73: Producten | C73: € | D73: =IF(D75<=0,"",VLOOKUP(D$75,$W$89:$AF$129,8,FALSE)) -> 0 | E73: =VLOOKUP(E$75,$W$89:$AF$129,8,FALSE) -> 43.68184589 | F73: 211.1289218 | G73: 611.5458425 | H73: 291.212306 | I73: 94.64399944
B74: Onderhoud | C74: € | D74: =IF(D75<=0,"",VLOOKUP(D$75,$W$89:$AF$129,9,FALSE)) -> 1050 | E74: =VLOOKUP(E$75,$W$89:$AF$129,9,FALSE) -> 1190 | F74: 200 | G74: 1000 | H74: 109.2046147 | I74: =VLOOKUP(I$75,$W$89:$AF$129,9,FALSE) -> 1308
B75: Totaal | C75: € | D75: =MIN(D84:I84) -> 4461.052248 | E75: =MIN(J84:P84) -> 3873.969876 | F75: =MIN(Q84:X84) -> 2676.155598 | G75: =MIN(Y84:AF84) -> 4234.37235 | H75: =MIN(AG84:AJ84) -> 2903.533673 | I75: =MIN(AK84:AP84) -> 4090.31523
B78: Jaar Kosten | D78: =D41 -> 1 | E78: 2 | F78: 3 | G78: 4 | H78: 5 | I78: 6 | J78: 7 | K78: 8 | L78: 9 | M78: 10 | N78: 11 | O78: 12 | P78: 13 | Q78: 14 | R78: 15 | S78: 16 | T78: 17 | U78: 18 | V78: 19 | W78: 20 | X78: 21 | Y78: 22 | Z78: 23 | AA78: 24 | AB78: 25 | AC78: 26 | AD78: 27 | AE78: 28 | AF78: 29 | AG78: =AG41 -> 30 | AH78: 31 | AI78: 32 | AJ78: 33 | AK78: 34 | AL78: 35 | AM78: 36 | AN78: 37 | AO78: 38 | AP78: 39
B79: Afschrijving | C79: € | D79: =IF(AND(OR(D51="geen oplossing gevonden",D53="geen oplossing gevonden"),$I$62=1),"-",IF(AND($I$62=0,D45/$D$5<$K$92),"-",(D46+D51+D53)/$G$6)) -> 3067.4 | E79: 3585.5 | F79: 7448.9 | G79: 8253.4 | H79: 9760.4 | I79: 11996.4 | J79: 2334.2 | K79: 2717.9 | L79: 3215 | M79: 3715 | N79: 4465 | O79: 5215 | P79: 5965 | Q79: 1969.2 | R79: 2317.9 | S79: 2742.9 | T79: 3167.9 | U79: 4017.9 | V79: 4867.9 | W79: 6567.9 | X79: 8267.9 | Y79: 2417.9 | Z79: 2917.9 | AA79: 5417.9 | AB79: 7217.9 | AC79: 8317.9 | AD79: 10367.9 | AE79: 17900 | AF79: 25900 | AG79: 2167.9 | AH79: =IF(AND(OR(AH51="geen oplossing gevonden",AH53="geen oplossing gevonden"),$I$62=1),"-",IF(AND($I$62=0,AH45/$D$5<$K$92),"-",(AH46+AH51+AH53)/$G$6)) -> 2717.9 | AI79: 3067.9 | AJ79: 3417.9 | AK79: 2440.4 | AL79: 2740.4 | AM79: 3140.4 | AN79: 3440.4 | AO79: 3840.4 | AP79: 4140.4
B80: Rent | C80: € | D80: =IF(AND(OR(D51="geen oplossing gevonden",D53="geen oplossing gevonden"),$I$62=1),"-",IF(AND($I$62=0,D45/$D$5<$K$92),"-",IF(D79>0,D79*$G$7*0.01,0))) -> 214.718 | E80: 250.985 | F80: 521.423 | G80: 577.738 | H80: 683.228 | I80: 839.748 | J80: 163.394 | K80: 190.253 | L80: 225.05 | M80: 260.05 | N80: 312.55 | O80: 365.05 | P80: 417.55 | Q80: 137.844 | R80: 162.253 | S80: 192.003 | T80: 221.753 | U80: 281.253 | V80: 340.753 | W80: 459.753 | X80: 578.753 | Y80: 169.253 | Z80: 204.253 | AA80: 379.253 | AB80: 505.253 | AC80: 582.253 | AD80: 725.753 | AE80: 1253 | AF80: 1813 | AG80: =IF(AND(OR(AG51="geen oplossing gevonden",AG53="geen oplossing gevonden"),$I$62=1),"-",IF(AND($I$62=0,AG45/$D$5<$K$92),"-",IF(AG79>0,AG79*$G$7*0.01,0))) -> 151.753 | AH80: 190.253 | AI80: 214.753 | AJ80: 239.253 | AK80: 170.828 | AL80: 191.828 | AM80: 219.828 | AN80: 240.828 | AO80: 268.828 | AP80: 289.828
B81: Kracht | C81: € | D81: =IF(AND(OR(D51="geen oplossing gevonden",D53="geen oplossing gevonden"),$I$62=1),"-",IF(AND($I$62=0,D45/$D$5<$K$92),"-",(D47*$G$5*$K$93*$D$5))) -> 128.9342485 | E81: 101.9243071 | F81: 95.80884866 | G81: 95.29922713 | H81: 75.93360878 | I81: 71.8566365 | J81: 142.6940299 | K81: 137.5978146 | L81: 132.5015992 | M81: 132.5015992 | N81: 127.4053839 | O81: 122.3091685 | P81: 122.3091685 | Q81: 157.982676 | R81: 157.982676 | S81: 157.982676 | T81: 157.982676 | U81: 157.982676 | V81: 157.982676 | W81: 157.982676 | X81: 157.982676 | Y81: 35.67350748 | Z81: 30.57729213 | AA81: 25.48107677 | AB81: 13.25015992 | AC81: 11.21167378 | AD81: 7.644323032 | AE81: 7.644323032 | AF81: 7.644323032 | AG81: =IF(AND(OR(AG51="geen oplossing gevonden",AG53="geen oplossing gevonden"),$I$62=1),"-",IF(AND($I$62=0,AG45/$D$5<$K$92),"-",(AG47*$G$5*$K$93*$D$5))) -> 183.4637528 | AH81: 147.7902453 | AI81: 137.5978146 | AJ81: 132.5015992 | AK81: 76.44323032 | AL81: 71.34701496 | AM81: 66.25079961 | AN81: 71.34701496 | AO81: 66.25079961 | AP81: 71.34701496
B82: Producten | C82: € | D82: =IF(AND(OR(D51="geen oplossing gevonden",D53="geen oplossing gevonden"),$I$62=1),"-",IF(AND($I$62=0,D45/$D$5<$K$92),"-",D48*$K$93*$D$5)) -> 0 | E82: 0 | F82: 0 | G82: 0 | H82: 0 | I82: 0 | J82: 43.68184589 | K82: 43.68184589 | L82: 43.68184589 | M82: 43.68184589 | N82: 43.68184589 | O82: 43.68184589 | P82: 43.68184589 | Q82: 211.1289218 | R82: 211.1289218 | S82: 211.1289218 | T82: 211.1289218 | U82: 211.1289218 | V82: 211.1289218 | W82: 211.1289218 | X82: 211.1289218 | Y82: 611.5458425 | Z82: 611.5458425 | AA82: 611.5458425 | AB82: 611.5458425 | AC82: 611.5458425 | AD82: 611.5458425 | AE82: 611.5458425 | AF82: 611.5458425 | AG82: =IF(AND(OR(AG51="geen oplossing gevonden",AG53="geen oplossing gevonden"),$I$62=1),"-",IF(AND($I$62=0,AG45/$D$5<$K$92),"-",AG48*$K$93*$D$5)) -> 291.212306 | AH82: 291.212306 | AI82: 291.212306 | AJ82: 291.212306 | AK82: 94.64399944 | AL82: 94.64399944 | AM82: 94.64399944 | AN82: 94.64399944 | AO82: 94.64399944 | AP82: 94.64399944
B83: Onderhoud | C83: € | D83: =IF(AND(OR(D51="geen oplossing gevonden",D53="geen oplossing gevonden"),$I$62=1),"-",IF(AND($I$62=0,D45/$D$5<$K$92),"-",D49)) -> 1050 | E83: 1150 | F83: 2400 | G83: 2800 | H83: 3250 | I83: 4300 | J83: 1190 | K83: 1317 | L83: 1479 | M83: 1602 | N83: 1988 | O83: 2317 | P83: 2577 | Q83: 200 | R83: 200 | S83: 200 | T83: 200 | U83: 250 | V83: 250 | W83: 250 | X83: 300 | Y83: 1000 | Z83: 1200 | AA83: 1375 | AB83: 1375 | AC83: 1750 | AD83: 1750 | AE83: 3500 | AF83: 5250 | AG83: =IF(AND(OR(AG51="geen oplossing gevonden",AG53="geen oplossing gevonden"),$I$62=1),"-",IF(AND($I$62=0,AG45/$D$5<$K$92),"-",AG49)) -> 109.2046147 | AH83: 87.36369179 | AI83: 80.08338414 | AJ83: 72.80307649 | AK83: 1308 | AL83: 1760 | AM83: 2210 | AN83: 2662 | AO83: 3112 | AP83: 3563
B84: Totaal | C84: € | D84: =IF(AND(OR(D51="geen oplossing gevonden",D53="geen oplossing gevonden"),$I$62=1),"-",IF(AND($I$62=0,D45/$D$5<$K$92),"-",SUM(D79:D83))) -> 4461.052248 | E84: 5088.409307 | F84: 10466.13185 | G84: 11726.43723 | H84: 13769.56161 | I84: 17208.00464 | J84: 3873.969876 | K84: 4406.43266 | L84: 5095.233445 | M84: 5753.233445 | N84: 6936.63723 | O84: 8063.041014 | P84: 9125.541014 | Q84: 2676.155598 | R84: 3049.264598 | S84: 3504.014598 | T84: 3958.764598 | U84: 4918.264598 | V84: 5827.764598 | W84: 7646.764598 | X84: 9515.764598 | Y84: 4234.37235 | Z84: 4964.276135 | AA84: 7809.179919 | AB84: 9722.949002 | AC84: 11272.91052 | AD84: 13462.84317 | AE84: 23272.19017 | AF84: 33582.19017 | AG84: =IF(AND(OR(AG51="geen oplossing gevonden",AG53="geen oplossing gevonden"),$I$62=1),"-",IF(AND($I$62=0,AG45/$D$5<$K$92),"-",SUM(AG79:AG83))) -> 2903.533673 | AH84: 3434.519243 | AI84: 3791.546505 | AJ84: 4153.669982 | AK84: =IF(AND(OR(AK51="geen oplossing gevonden",AK53="geen oplossing gevonden"),$I$62=1),"-",IF(AND($I$62=0,AK45/$D$5<$K$92),"-",SUM(AK79:AK83))) -> 4090.31523 | AL84: 4858.219014 | AM84: 5731.122799 | AN84: 6509.219014 | AO84: 7382.122799 | AP84: 8159.219014
B85: opslag | C85: m3 | D85: =IF(AND(OR(D51="geen oplossing gevonden",D53="geen oplossing gevonden"),$I$62=1),"-",IF(AND($I$62=0,D45/$D$5<$K$92),"-",D50+D52)) -> 51 | E85: 25 | F85: 25 | G85: 25 | H85: 25 | I85: 25 | J85: 73 | K85: 51 | L85: 25 | M85: 25 | N85: 25 | O85: 25 | P85: 25 | Q85: 73 | R85: 51 | S85: 51 | T85: 51 | U85: 51 | V85: 51 | W85: 51 | X85: 51 | Y85: 51 | Z85: 51 | AA85: 51 | AB85: 51 | AC85: 51 | AD85: 51 | AE85: 0 | AF85: 0 | AG85: =IF(AND(OR(AG51="geen oplossing gevonden",AG53="geen oplossing gevonden"),$I$62=1),"-",IF(AND($I$62=0,AG45/$D$5<$K$92),"-",AG50+AG52)) -> 51 | AH85: 51 | AI85: 51 | AJ85: 51 | AK85: 51 | AL85: 51 | AM85: 51 | AN85: 51 | AO85: 51 | AP85: 51
B86: Belows this line, the row are hiden for the user
B88: Voor ontsmetting | G88: Voor de zuivering | M88: Berekend per aparaat volgens zijn capaciteit : | Q88: 1.125
A89: Waterstroomen | W89: Totaal | X89: Capaciteit | Y89: Prijs | Z89: Opslag | AA89: Afschrijving | AB89: Rent | AC89: Kracht | AD89: Producten | AE89: Onderhoud | AF89: Nummer
A90: Datum | B90: Drainwater | C90: Drainbuffer | D90: Ontsmetting | E90: Schoonwater | F90: mengwater | G90: Lozing Op Na | H90: Drain tank Overloop | I90: filterSpoeling | J90: Teeltwisseling | K90: Lozing | L90: Day stroom | M90: Zbuffer | N90: Zuivering | O90: Combineerd | P90: Rbuffer | Q90: Riool | S90: WaterStroomModel | W90: €/ha | X90: m3/uur | Y90: € | Z90: l | AA90: € | AB90: € | AC90: € | AD90: € | AE90: € | AF90: -
A91: - | B91: m3/uur/ha | C91: m3/ha | D91: m3/uur/ha | E91: m3/ha | F91: m3/uur/ha | G91: m3/uur/ha | H91: m3/uur/ha | I91: m3/uur/ha | J91: m3/uur/ha | K91: m3/uur/ha | L91: m3/uur/ha | M91: m3/ha | N91: m3/uur/ha | O91: m3/uur/ha | P91: m3/ha | Q91: m3/uur/ha | S91: startteelt | T91: 340 | U91: Datum | W91: =SUM(AA91:AE91) -> 4461.052248 | X91: =INDIRECT(CHAR(68+$AF91)&ROW($B$45)) -> 0.7 | Y91: =INDIRECT(CHAR(68+$AF91)&ROW($B$51))+INDIRECT(CHAR(68+$AF91)&ROW($B$53))+INDIRECT(CHAR(68+$AF91)&ROW($B$46)) -> 30674 | Z91: =INDIRECT(CHAR(68+$AF91)&ROW($B$85)) -> 51 | AA91: =INDIRECT(CHAR(68+$AF91)&ROW($B$79)) -> 3067.4 | AB91: =INDIRECT(CHAR(68+$AF91)&ROW($B$80)) -> 214.718 | AC91: =INDIRECT(CHAR(68+$AF91)&ROW($B$81)) -> 128.9342485 | AD91: =INDIRECT(CHAR(68+$AF91)&ROW($B$82)) -> 0 | AE91: =INDIRECT(CHAR(68+$AF91)&ROW($B$83)) -> 1050 | AF91: 0
A92: Max | B92: =MAX(B94:B8853) -> 2.637401834 | C92: =MAX(C94:C8853) -> 3852.421075 | D92: 0 | E92: 0 | F92: 2.637401834 | G92: 1.274453504 | H92: 0 | I92: 0.3333333333 | J92: 4.271705821 | K92: 4.271705821 | L92: 7.040652273 | M92: 4.271705821 | N92: 1.125 | O92: 0 | P92: 2.771705821 | Q92: 0.5 | S92: eindeteelt | T92: 320 | U92: Datum | W92: 5088.409307 | X92: =INDIRECT(CHAR(68+$AF92)&ROW($B$45)) -> 1.2 | Y92: =INDIRECT(CHAR(68+$AF92)&ROW($B$51))+INDIRECT(CHAR(68+$AF92)&ROW($B$53))+INDIRECT(CHAR(68+$AF92)&ROW($B$46)) -> 35855 | Z92: 25 | AA92: 3585.5 | AB92: 250.985 | AC92: 101.9243071 | AD92: 0 | AE92: 1150 | AF92: =AF91+1 -> 1
A93: Sum | B93: =SUM(B94:B8853) -> 3852.421075 | D93: =SUM(D94:D8853) -> 0 | F93: 3670.413383 | G93: 69.06931874 | H93: 0 | I93: 108.6666667 | J93: =SUM(J94:J8853) -> 4.271705821 | K93: =SUM(K94:K8853) -> 182.0076912 | L93: =SUM(L94:L8853) -> 182.0076912 | N93: 182.0076912 | O93: 0 | Q93: 182.0076912 | S93: teeltwisseling | T93: =(T92+365-T91)*24+1 -> 8281 | U93: Datum | W93: 10466.13185 | X93: 3 | Y93: =INDIRECT(CHAR(68+$AF93)&ROW($B$51))+INDIRECT(CHAR(68+$AF93)&ROW($B$53))+INDIRECT(CHAR(68+$AF93)&ROW($B$46)) -> 74489 | Z93: 25 | AA93: 7448.9 | AB93: 521.423 | AC93: 95.80884866 | AD93: 0 | AE93: 2400 | AF93: =AF92+1 -> 2
A94: 1 | B94: 0 | C94: =B94 -> 0 | D94: =IF($I$5<C94,$I$5,0) -> 0 | E94: =D94 -> 0 | F94: 0 | G94: 0 | H94: 0 | I94: 0 | J94: 0 | K94: =SUM(G94:J94) -> 0 | M94: =K94 -> 0 | N94: =IF(M94<$Q$88,M94,$Q$88) -> 0 | P94: =N94 -> 0 | Q94: =IF(P94<$D$7, P94,$D$7) -> 0 | W94: =SUM(AA94:AE94) -> 11726.43723 | X94: 4 | Y94: 82534 | Z94: 25 | AA94: 8253.4 | AB94: 577.738 | AC94: 95.29922713 | AD94: 0 | AE94: 2800 | AF94: 3
A95: =A94+1 -> 2 | B95: 0 | C95: =IF(C94+B95-D94>=0,C94+B95-D94,0) -> 0 | D95: =IF($I$5<C95,$I$5,0) -> 0 | E95: =IF(E94+D95-F94>=0,E94+D95-F94,0) -> 0 | F95: 0 | G95: 0 | H95: 0 | I95: 0 | J95: 0 | K95: =SUM(G95:J95) -> 0 | M95: =IF(M94+K95-N94>=0,M94+K95-N94,0) -> 0 | N95: =IF(M95<$Q$88,M95,$Q$88) -> 0 | P95: =IF(P94+N95-Q94>0,P94+N95-Q94,0) -> 0 | Q95: =IF(P95<$D$7, P95,$D$7) -> 0 | W95: 13769.56161 | X95: 6 | Y95: 97604 | Z95: 25 | AA95: 9760.4 | AB95: 683.228 | AC95: 75.93360878 | AD95: 0 | AE95: 3250 | AF95: 4
A96: =A95+1 -> 3 | B96: 0 | C96: =IF(C95+B96-D95>=0,C95+B96-D95,0) -> 0 | D96: 0 | E96: =IF(E95+D96-F95>=0,E95+D96-F95,0) -> 0 | F96: 0 | G96: 0 | H96: 0 | I96: 0 | J96: 0 | K96: 0 | M96: =IF(M95+K96-N95>=0,M95+K96-N95,0) -> 0 | N96: =IF(M96<$Q$88,M96,$Q$88) -> 0 | P96: =IF(P95+N96-Q95>0,P95+N96-Q95,0) -> 0 | Q96: 0 | W96: 17208.00464 | X96: 10 | Y96: 119964 | Z96: 25 | AA96: 11996.4 | AB96: 839.748 | AC96: 71.8566365 | AD96: 0 | AE96: 4300 | AF96: 5
A97: 4 | B97: 0 | C97: 0 | D97: 0 | E97: 0 | F97: 0 | G97: 0 | H97: 0 | I97: 0 | J97: 0 | K97: 0 | M97: 0 | N97: 0 | P97: 0 | Q97: 0 | W97: 3873.969876 | X97: 0.53 | Y97: 23342 | Z97: 73 | AA97: 2334.2 | AB97: 163.394 | AC97: 142.6940299 | AD97: 43.68184589 | AE97: 1190 | AF97: 6
A98: 5 | B98: 0 | C98: 0 | D98: 0 | E98: 0 | F98: 0 | G98: 0 | H98: 0 | I98: 0 | J98: 0 | K98: 0 | M98: 0 | N98: 0 | P98: 0 | Q98: 0 | W98: 4406.43266 | X98: 0.7 | Y98: 27179 | Z98: 51 | AA98: 2717.9 | AB98: 190.253 | AC98: 137.5978146 | AD98: 43.68184589 | AE98: 1317 | AF98: 7
A99: 6 | B99: 0 | C99: 0 | D99: 0 | E99: 0 | F99: 0 | G99: 0 | H99: 0 | I99: 0 | J99: 0 | K99: 0 | M99: 0 | N99: 0 | P99: 0 | Q99: 0 | W99: 5095.233445 | X99: 1.05 | Y99: 32150 | Z99: 25 | AA99: 3215 | AB99: 225.05 | AC99: 132.5015992 | AD99: 43.68184589 | AE99: 1479 | AF99: 8
A100: 7 | B100: 0 | C100: 0 | D100: 0 | E100: 0 | F100: 0 | G100: 0 | H100: 0 | I100: 0 | J100: 0 | K100: 0 | M100: 0 | N100: 0 | P100: 0 | Q100: 0 | W100: 5753.233445 | X100: 1.4 | Y100: 37150 | Z100: 25 | AA100: 3715 | AB100: 260.05 | AC100: 132.5015992 | AD100: 43.68184589 | AE100: 1602 | AF100: 9
A101: 8 | B101: 0 | C101: 0 | D101: 0 | E101: 0 | F101: 0 | G101: 0 | H101: 0 | I101: 0 | J101: 0 | K101: 0 | M101: 0 | N101: 0 | P101: 0 | Q101: 0 | W101: 6936.63723 | X101: 2.1 | Y101: 44650 | Z101: 25 | AA101: 4465 | AB101: 312.55 | AC101: 127.4053839 | AD101: 43.68184589 | AE101: 1988 | AF101: 10
A102: 9 | B102: 0 | C102: 0 | D102: 0 | E102: 0 | F102: 0 | G102: 0 | H102: 0 | I102: 0 | J102: 0 | K102: 0 | M102: 0 | N102: 0 | P102: 0 | Q102: 0 | W102: 8063.041014 | X102: 2.8 | Y102: 52150 | Z102: 25 | AA102: 5215 | AB102: 365.05 | AC102: 122.3091685 | AD102: 43.68184589 | AE102: 2317 | AF102: 11
A103: 10 | B103: 0 | C103: 0 | D103: 0 | E103: 0 | F103: 0 | G103: 0 | H103: 0 | I103: 0 | J103: 0 | K103: 0 | M103: 0 | N103: 0 | P103: 0 | Q103: 0 | W103: 9125.541014 | X103: 3.5 | Y103: 59650 | Z103: 25 | AA103: 5965 | AB103: 417.55 | AC103: 122.3091685 | AD103: 43.68184589 | AE103: 2577 | AF103: 12
A104: 11 | B104: 0 | C104: 0 | D104: 0 | E104: 0 | F104: 0 | G104: 0 | H104: 0 | I104: 0 | J104: 0 | K104: 0 | M104: 0 | N104: 0 | P104: 0 | Q104: 0 | W104: 2676.155598 | X104: 0.4 | Y104: 19692 | Z104: 73 | AA104: 1969.2 | AB104: 137.844 | AC104: 157.982676 | AD104: 211.1289218 | AE104: 200 | AF104: 13
A105: 12 | B105: 0 | C105: 0 | D105: 0 | E105: 0 | F105: 0 | G105: 0 | H105: 0 | I105: 0 | J105: 0 | K105: 0 | M105: 0 | N105: 0 | P105: 0 | Q105: 0 | W105: 3049.264598 | X105: 0.8 | Y105: 23179 | Z105: 51 | AA105: 2317.9 | AB105: 162.253 | AC105: 157.982676 | AD105: 211.1289218 | AE105: 200 | AF105: 14
A106: 13 | B106: 0 | C106: 0 | D106: 0 | E106: 0 | F106: 0 | G106: 0 | H106: 0 | I106: 0 | J106: 0 | K106: 0 | M106: 0 | N106: 0 | P106: 0 | Q106: 0 | W106: 3504.014598 | X106: 1.2 | Y106: 27429 | Z106: 51 | AA106: 2742.9 | AB106: 192.003 | AC106: 157.982676 | AD106: 211.1289218 | AE106: 200 | AF106: 15
A107: 14 | B107: 0 | C107: 0 | D107: 0 | E107: 0 | F107: 0 | G107: 0 | H107: 0 | I107: 0 | J107: 0 | K107: 0 | M107: 0 | N107: 0 | P107: 0 | Q107: 0 | W107: 3958.764598 | X107: 1.6 | Y107: 31679 | Z107: 51 | AA107: 3167.9 | AB107: 221.753 | AC107: 157.982676 | AD107: 211.1289218 | AE107: 200 | AF107: 16
A108: 15 | B108: 0 | C108: 0 | D108: 0 | E108: 0 | F108: 0 | G108: 0 | H108: 0 | I108: 0 | J108: 0 | K108: 0 | M108: 0 | N108: 0 | P108: 0 | Q108: 0 | W108: 4918.264598 | X108: 2.4 | Y108: 40179 | Z108: 51 | AA108: 4017.9 | AB108: 281.253 | AC108: 157.982676 | AD108: 211.1289218 | AE108: 250 | AF108: 17
A109: 16 | B109: 0 | C109: 0 | D109: 0 | E109: 0 | F109: 0 | G109: 0 | H109: 0 | I109: 0 | J109: 0 | K109: 0 | M109: 0 | N109: 0 | P109: 0 | Q109: 0 | W109: 5827.764598 | X109: 3.2 | Y109: 48679 | Z109: 51 | AA109: 4867.9 | AB109: 340.753 | AC109: 157.982676 | AD109: 211.1289218 | AE109: 250 | AF109: 18
A110: 17 | B110: 0 | C110: 0 | D110: 0 | E110: 0 | F110: 0 | G110: 0 | H110: 0 | I110: 0 | J110: 0 | K110: 0 | M110: 0 | N110: 0 | P110: 0 | Q110: 0 | W110: 7646.764598 | X110: 4.8 | Y110: 65679 | Z110: 51 | AA110: 6567.9 | AB110: 459.753 | AC110: 157.982676 | AD110: 211.1289218 | AE110: 250 | AF110: 19
A111: 18 | B111: 0 | C111: 0 | D111: 0 | E111: 0 | F111: 0 | G111: 0 | H111: 0 | I111: 0 | J111: 0 | K111: 0 | M111: 0 | N111: 0 | P111: 0 | Q111: 0 | W111: 9515.764598 | X111: 6.4 | Y111: 82679 | Z111: 51 | AA111: 8267.9 | AB111: 578.753 | AC111: 157.982676 | AD111: 211.1289218 | AE111: 300 | AF111: 20
A112: 19 | B112: 0 | C112: 0 | D112: 0 | E112: 0 | F112: 0 | G112: 0 | H112: 0 | I112: 0 | J112: 0 | K112: 0 | M112: 0 | N112: 0 | P112: 0 | Q112: 0 | W112: 4234.37235 | X112: 0.48 | Y112: 24179 | Z112: 51 | AA112: 2417.9 | AB112: 169.253 | AC112: 35.67350748 | AD112: 611.5458425 | AE112: 1000 | AF112: 21
A113: 20 | B113: 0 | C113: 0 | D113: 0 | E113: 0 | F113: 0 | G113: 0 | H113: 0 | I113: 0 | J113: 0 | K113: 0 | M113: 0 | N113: 0 | P113: 0 | Q113: 0 | W113: 4964.276135 | X113: 0.6 | Y113: 29179 | Z113: 51 | AA113: 2917.9 | AB113: 204.253 | AC113: 30.57729213 | AD113: 611.5458425 | AE113: 1200 | AF113: 22
A114: 21 | B114: 0 | C114: 0 | D114: 0 | E114: 0 | F114: 0 | G114: 0 | H114: 0 | I114: 0 | J114: 0 | K114: 0 | M114: 0 | N114: 0 | P114: 0 | Q114: 0 | W114: 7809.179919 | X114: =INDIRECT("A"&CHAR(42+$AF114)&ROW($B$45)) -> 1.5 | Y114: =INDIRECT("A"&CHAR(42+$AF114)&ROW($B$51))+INDIRECT("A"&CHAR(42+$AF114)&ROW($B$53))+INDIRECT("A"&CHAR(42+$AF114)&ROW($B$46)) -> 54179 | Z114: =INDIRECT("A"&CHAR(42+$AF114)&ROW($B$85)) -> 51 | AA114: =INDIRECT("A"&CHAR(42+$AF114)&ROW($B$79)) -> 5417.9 | AB114: =INDIRECT("A"&CHAR(42+$AF114)&ROW($B$80)) -> 379.253 | AC114: =INDIRECT("A"&CHAR(42+$AF114)&ROW($B$81)) -> 25.48107677 | AD114: =INDIRECT("A"&CHAR(42+$AF114)&ROW($B$82)) -> 611.5458425 | AE114: =INDIRECT("A"&CHAR(42+$AF114)&ROW($B$83)) -> 1375 | AF114: 23
A115: 22 | B115: 0 | C115: 0 | D115: 0 | E115: 0 | F115: 0 | G115: 0 | H115: 0 | I115: 0 | J115: 0 | K115: 0 | M115: 0 | N115: 0 | P115: 0 | Q115: 0 | W115: 9722.949002 | X115: 2.5 | Y115: =INDIRECT("A"&CHAR(42+$AF115)&ROW($B$51))+INDIRECT("A"&CHAR(42+$AF115)&ROW($B$53))+INDIRECT("A"&CHAR(42+$AF115)&ROW($B$46)) -> 72179 | Z115: 51 | AA115: 7217.9 | AB115: 505.253 | AC115: 13.25015992 | AD115: 611.5458425 | AE115: 1375 | AF115: 24
A116: 23 | B116: 0 | C116: 0 | D116: 0 | E116: 0 | F116: 0 | G116: 0 | H116: 0 | I116: 0 | J116: 0 | K116: 0 | M116: 0 | N116: 0 | P116: 0 | Q116: 0 | W116: 11272.91052 | X116: 5 | Y116: 83179 | Z116: 51 | AA116: 8317.9 | AB116: 582.253 | AC116: 11.21167378 | AD116: 611.5458425 | AE116: 1750 | AF116: 25
A117: 24 | B117: 0 | C117: 0 | D117: 0 | E117: 0 | F117: 0 | G117: 0 | H117: 0 | I117: 0 | J117: 0 | K117: 0 | L117: =SUM(K94:K117) -> 0 | M117: 0 | N117: 0 | P117: 0 | Q117: 0 | W117: 13462.84317 | X117: 10 | Y117: 103679 | Z117: 51 | AA117: 10367.9 | AB117: 725.753 | AC117: 7.644323032 | AD117: 611.5458425 | AE117: 1750 | AF117: 26
A118: 25 | B118: 0 | C118: 0 | D118: 0 | E118: 0 | F118: 0 | G118: 0 | H118: 0 | I118: 0 | J118: 0 | K118: 0 | M118: 0 | N118: 0 | P118: 0 | Q118: 0 | W118: 23272.19017 | X118: 20 | Y118: 179000 | Z118: 0 | AA118: 17900 | AB118: =INDIRECT("A"&CHAR(42+$AF118)&ROW($B$80)) -> 1253 | AC118: 7.644323032 | AD118: 611.5458425 | AE118: 3500 | AF118: 27
A119: 26 | B119: 0 | C119: 0 | D119: 0 | E119: 0 | F119: 0 | G119: 0 | H119: 0 | I119: 0 | J119: 0 | K119: 0 | M119: 0 | N119: 0 | P119: 0 | Q119: 0 | W119: 33582.19017 | X119: 30 | Y119: 259000 | Z119: 0 | AA119: 25900 | AB119: 1813 | AC119: 7.644323032 | AD119: 611.5458425 | AE119: 5250 | AF119: 28
A120: 27 | B120: 0 | C120: 0 | D120: 0 | E120: 0 | F120: 0 | G120: 0 | H120: 0 | I120: 0 | J120: 0 | K120: 0 | M120: 0 | N120: 0 | P120: 0 | Q120: 0 | W120: =SUM(AA120:AE120) -> 2903.533673 | X120: 0.75 | Y120: 21679 | Z120: 51 | AA120: 2167.9 | AB120: 151.753 | AC120: 183.4637528 | AD120: 291.212306 | AE120: 109.2046147 | AF120: =AF119+1 -> 29
A121: 28 | B121: 0 | C121: 0 | D121: 0 | E121: 0 | F121: 0 | G121: 0 | H121: 0 | I121: 0 | J121: 0 | K121: 0 | M121: 0 | N121: 0 | P121: 0 | Q121: 0 | W121: 3434.519243 | X121: 1.5 | Y121: 27179 | Z121: 51 | AA121: 2717.9 | AB121: 190.253 | AC121: 147.7902453 | AD121: 291.212306 | AE121: 87.36369179 | AF121: 30
A122: 29 | B122: 0 | C122: 0 | D122: 0 | E122: 0 | F122: 0 | G122: 0 | H122: 0 | I122: 0 | J122: 0 | K122: 0 | M122: 0 | N122: 0 | P122: 0 | Q122: 0 | W122: 3791.546505 | X122: 2.25 | Y122: 30679 | Z122: 51 | AA122: 3067.9 | AB122: 214.753 | AC122: 137.5978146 | AD122: 291.212306 | AE122: 80.08338414 | AF122: 31
A123: 30 | B123: 0 | C123: 0 | D123: 0 | E123: 0 | F123: 0 | G123: 0 | H123: 0 | I123: 0 | J123: 0 | K123: 0 | M123: 0 | N123: 0 | P123: 0 | Q123: 0 | W123: 4153.669982 | X123: 3 | Y123: 34179 | Z123: 51 | AA123: 3417.9 | AB123: 239.253 | AC123: 132.5015992 | AD123: 291.212306 | AE123: 72.80307649 | AF123: 32
A124: 31 | B124: 0 | C124: 0 | D124: 0 | E124: 0 | F124: 0 | G124: 0 | H124: 0 | I124: 0 | J124: 0 | K124: 0 | M124: 0 | N124: 0 | P124: 0 | Q124: 0 | W124: 4090.31523 | X124: 0.75 | Y124: 24404 | Z124: 51 | AA124: 2440.4 | AB124: 170.828 | AC124: 76.44323032 | AD124: 94.64399944 | AE124: 1308 | AF124: 33
A125: 32 | B125: 0.01871362122 | C125: 0.01871362122 | D125: 0 | E125: 0 | F125: 0 | G125: 0 | H125: 0 | I125: 0 | J125: 0 | K125: 0 | M125: 0 | N125: 0 | P125: 0 | Q125: 0 | W125: 4858.219014 | X125: 1.5 | Y125: 27404 | Z125: 51 | AA125: 2740.4 | AB125: 191.828 | AC125: 71.34701496 | AD125: 94.64399944 | AE125: 1760 | AF125: 34
A126: 33 | B126: 0.2245634547 | C126: 0.2432770759 | D126: 0 | E126: 0 | F126: 0 | G126: 0 | H126: 0 | I126: 0 | J126: 0 | K126: 0 | M126: 0 | N126: 0 | P126: 0 | Q126: 0 | W126: 5731.122799 | X126: 2.25 | Y126: 31404 | Z126: 51 | AA126: 3140.4 | AB126: 219.828 | AC126: 66.25079961 | AD126: 94.64399944 | AE126: 2210 | AF126: 35
A127: 34 | B127: 0.4865541518 | C127: 0.7298312277 | D127: 0 | E127: 0 | F127: 0 | G127: 0 | H127: 0 | I127: 0 | J127: 0 | K127: 0 | M127: 0 | N127: 0 | P127: 0 | Q127: 0 | W127: 6509.219014 | X127: 3 | Y127: 34404 | Z127: 51 | AA127: 3440.4 | AB127: 240.828 | AC127: 71.34701496 | AD127: 94.64399944 | AE127: 2662 | AF127: 36
A128: 35 | B128: 0.7111176065 | C128: 1.440948834 | D128: 0 | E128: 0 | F128: 0 | G128: 0 | H128: 0 | I128: 0 | J128: 0 | K128: 0 | M128: 0 | N128: 0 | P128: 0 | Q128: 0 | W128: 7382.122799 | X128: 3.75 | Y128: 38404 | Z128: 51 | AA128: 3840.4 | AB128: 268.828 | AC128: 66.25079961 | AD128: 94.64399944 | AE128: 3112 | AF128: 37
A129: 36 | B129: 0.7890910283 | C129: 2.230039863 | D129: 0 | E129: 0 | F129: 0 | G129: 0 | H129: 0 | I129: 0 | J129: 0 | K129: 0 | M129: 0 | N129: 0 | P129: 0 | Q129: 0 | W129: 8159.219014 | X129: 4.5 | Y129: =INDIRECT("A"&CHAR(42+$AF129)&ROW($B$51))+INDIRECT("A"&CHAR(42+$AF129)&ROW($B$53))+INDIRECT("A"&CHAR(42+$AF129)&ROW($B$46)) -> 41404 | Z129: 51 | AA129: 4140.4 | AB129: 289.828 | AC129: 71.34701496 | AD129: 94.64399944 | AE129: 3563 | AF129: 38
A130: 37 | B130: 0.7111176065 | C130: 2.941157469 | D130: 0 | E130: 0 | F130: 0 | G130: 0 | H130: 0 | I130: 0 | J130: 0 | K130: 0 | M130: 0 | N130: 0 | P130: 0 | Q130: 0
A131: 38 | B131: 0.4927920256 | C131: 3.433949495 | D131: 0 | E131: 0 | F131: 0 | G131: 0 | H131: 0 | I131: 0 | J131: 0 | K131: 0 | M131: 0 | N131: 0 | P131: 0 | Q131: 0
A132: 39 | B132: 0.2432770759 | C132: 3.677226571 | D132: 0 | E132: 0 | F132: 0 | G132: 0 | H132: 0 | I132: 0 | J132: 0 | K132: 0 | M132: 0 | N132: 0 | P132: 0 | Q132: 0
A133: 40 | B133: 0.01871362122 | C133: 3.695940192 | D133: 0 | E133: 0 | F133: 0 | G133: 0 | H133: 0 | I133: 0 | J133: 0 | K133: 0 | M133: 0 | N133: 0 | P133: 0 | Q133: 0
A134: 41 | B134: 0 | C134: 3.695940192 | D134: 0 | E134: 0 | F134: 0 | G134: 0 | H134: 0 | I134: 0 | J134: 0 | K134: 0 | M134: 0 | N134: 0 | P134: 0 | Q134: 0
A135: 42 | B135: 0 | C135: 3.695940192 | D135: 0 | E135: 0 | F135: 0 | G135: 0 | H135: 0 | I135: 0 | J135: 0 | K135: 0 | M135: 0 | N135: 0 | P135: 0 | Q135: 0
A136: 43 | B136: 0 | C136: 3.695940192 | D136: 0 | E136: 0 | F136: 0 | G136: 0 | H136: 0 | I136: 0 | J136: 0 | K136: 0 | M136: 0 | N136: 0 | P136: 0 | Q136: 0
A137: 44 | B137: 0 | C137: 3.695940192 | D137: 0 | E137: 0 | F137: 0 | G137: 0 | H137: 0 | I137: 0 | J137: 0 | K137: 0 | M137: 0 | N137: 0 | P137: 0 | Q137: 0
A138: 45 | B138: 0 | C138: 3.695940192 | D138: 0 | E138: 0 | F138: 0 | G138: 0 | H138: 0 | I138: 0 | J138: 0 | K138: 0 | M138: 0 | N138: 0 | P138: 0 | Q138: 0
A139: 46 | B139: 0 | C139: 3.695940192 | D139: 0 | E139: 0 | F139: 0 | G139: 0 | H139: 0 | I139: 0 | J139: 0 | K139: 0 | M139: 0 | N139: 0 | P139: 0 | Q139: 0
A140: 47 | B140: 0 | C140: 3.695940192 | D140: 0 | E140: 0 | F140: 0 | G140: 0 | H140: 0 | I140: 0 | J140: 0 | K140: 0 | M140: 0 | N140: 0 | P140: 0 | Q140: 0
A141: 48 | B141: 0 | C141: 3.695940192 | D141: 0 | E141: 0 | F141: 0 | G141: 0 | H141: 0 | I141: 0 | J141: 0 | K141: 0 | L141: =SUM(K118:K141) -> 0 | M141: 0 | N141: 0 | P141: 0 | Q141: 0
A142: 49 | B142: 0 | C142: 3.695940192 | D142: 0 | E142: 0 | F142: 0 | G142: 0 | H142: 0 | I142: 0 | J142: 0 | K142: 0 | M142: 0 | N142: 0 | P142: 0 | Q142: 0
A143: 50 | B143: 0 | C143: 3.695940192 | D143: 0 | E143: 0 | F143: 0 | G143: 0 | H143: 0 | I143: 0 | J143: 0 | K143: 0 | M143: 0 | N143: 0 | P143: 0 | Q143: 0
A144: 51 | B144: 0 | C144: 3.695940192 | D144: 0 | E144: 0 | F144: 0 | G144: 0 | H144: 0 | I144: 0 | J144: 0 | K144: 0 | M144: 0 | N144: 0 | P144: 0 | Q144: 0
A145: 52 | B145: 0 | C145: 3.695940192 | D145: 0 | E145: 0 | F145: 0 | G145: 0 | H145: 0 | I145: 0 | J145: 0 | K145: 0 | M145: 0 | N145: 0 | P145: 0 | Q145: 0
A146: 53 | B146: 0 | C146: 3.695940192 | D146: 0 | E146: 0 | F146: 0 | G146: 0 | H146: 0 | I146: 0 | J146: 0 | K146: 0 | M146: 0 | N146: 0 | P146: 0 | Q146: 0
A147: 54 | B147: 0 | C147: 3.695940192 | D147: 0 | E147: 0 | F147: 0 | G147: 0 | H147: 0 | I147: 0 | J147: 0 | K147: 0 | M147: 0 | N147: 0 | P147: 0 | Q147: 0
A148: 55 | B148: 0 | C148: 3.695940192 | D148: 0 | E148: 0 | F148: 0 | G148: 0 | H148: 0 | I148: 0 | J148: 0 | K148: 0 | M148: 0 | N148: 0 | P148: 0 | Q148: 0
A149: 56 | B149: 0.01864190722 | C149: 3.714582099 | D149: 0 | E149: 0 | F149: 0 | G149: 0 | H149: 0 | I149: 0 | J149: 0 | K149: 0 | M149: 0 | N149: 0 | P149: 0 | Q149: 0
A150: 57 | B150: 0.214381933 | C150: 3.928964032 | D150: 0 | E150: 0 | F150: 0 | G150: 0 | H150: 0 | I150: 0 | J150: 0 | K150: 0 | M150: 0 | N150: 0 | P150: 0 | Q150: 0
A151: 58 | B151: 0.4660476805 | C151: 4.395011712 | D151: 0 | E151: 0 | F151: 0 | G151: 0 | H151: 0 | I151: 0 | J151: 0 | K151: 0 | M151: 0 | N151: 0 | P151: 0 | Q151: 0
A152: 59 | B152: 0.6742156444 | C152: 5.069227357 | D152: 0 | E152: 0 | F152: 0.2283450458 | G152: 0 | H152: 0 | I152: 0 | J152: 0 | K152: 0 | M152: 0 | N152: 0 | P152: 0 | Q152: 0
A153: 60 | B153: 0.7518902578 | C153: 5.821117615 | D153: 0 | E153: 0 | F153: 0.6742156444 | G153: 0 | H153: 0 | I153: 0 | J153: 0 | K153: 0 | M153: 0 | N153: 0 | P153: 0 | Q153: 0
A154: 61 | B154: 0.6804296135 | C154: 6.501547228 | D154: 0 | E154: 0 | F154: 0.7518902578 | G154: 0 | H154: 0 | I154: 0 | J154: 0 | K154: 0 | M154: 0 | N154: 0 | P154: 0 | Q154: 0
A155: 62 | B155: 0.4660476805 | C155: 6.967594909 | D155: 0 | E155: 0 | F155: 0.6804296135 | G155: 0 | H155: 0 | I155: 0 | J155: 0 | K155: 0 | M155: 0 | N155: 0 | P155: 0 | Q155: 0
A156: 63 | B156: 0.2081679639 | C156: 7.175762873 | D156: 0 | E156: 0 | F156: 0.4660476805 | G156: 0 | H156: 0 | I156: 0 | J156: 0 | K156: 0 | M156: 0 | N156: 0 | P156: 0 | Q156: 0
A157: 64 | B157: 0.01864190722 | C157: 7.19440478 | D157: 0 | E157: 0 | F157: 0.2081679639 | G157: 0 | H157: 0 | I157: 0 | J157: 0 | K157: 0 | M157: 0 | N157: 0 | P157: 0 | Q157: 0
A158: 65 | B158: 0 | C158: 7.19440478 | D158: 0 | E158: 0 | F158: 0 | G158: 0 | H158: 0 | I158: 0 | J158: 0 | K158: 0 | M158: 0 | N158: 0 | P158: 0 | Q158: =IF(P158<$D$7, P158,$D$7) -> 0
A159: 66 | B159: 0 | C159: 7.19440478 | D159: =IF($I$5<C159,$I$5,0) -> 0 | E159: 0 | F159: 0 | G159: 0 | H159: 0 | I159: 0 | J159: 0 | K159: =SUM(G159:J159) -> 0 | M159: 0 | N159: =IF(M159<$Q$88,M159,$Q$88) -> 0 | P159: 0 | Q159: 0
A160: =A159+1 -> 67 | B160: 0 | C160: =IF(C159+B160-D159>=0,C159+B160-D159,0) -> 7.19440478 | D160: 0 | E160: =IF(E159+D160-F159>=0,E159+D160-F159,0) -> 0 | F160: 0 | G160: 0 | H160: 0 | I160: 0 | J160: 0 | K160: 0 | M160: =IF(M159+K160-N159>=0,M159+K160-N159,0) -> 0 | N160: 0 | P160: =IF(P159+N160-Q159>0,P159+N160-Q159,0) -> 0 | Q160: 0
A161: 68 | B161: 0 | C161: 7.19440478 | D161: 0 | E161: 0 | F161: 0 | G161: 0 | H161: 0 | I161: 0 | J161: 0 | K161: 0 | M161: 0 | N161: 0 | P161: 0 | Q161: 0
A162: 69 | B162: 0 | C162: 7.19440478 | D162: 0 | E162: 0 | F162: 0 | G162: 0 | H162: 0 | I162: 0 | J162: 0 | K162: 0 | M162: 0 | N162: 0 | P162: 0 | Q162: 0
A163: 70 | B163: 0 | C163: 7.19440478 | D163: 0 | E163: 0 | F163: 0 | G163: 0 | H163: 0 | I163: 0 | J163: 0 | K163: 0 | M163: 0 | N163: 0 | P163: 0 | Q163: 0
A164: 71 | B164: 0 | C164: 7.19440478 | D164: 0 | E164: 0 | F164: 0 | G164: 0 | H164: 0 | I164: 0 | J164: 0 | K164: 0 | M164: 0 | N164: 0 | P164: 0 | Q164: 0
A165: 72 | B165: 0 | C165: 7.19440478 | D165: 0 | E165: 0 | F165: 0 | G165: 0 | H165: 0 | I165: 0 | J165: 0 | K165: 0 | L165: =SUM(K142:K165) -> 0 | M165: 0 | N165: 0 | P165: 0 | Q165: 0
A166: 73 | B166: 0 | C166: 7.19440478 | D166: 0 | E166: 0 | F166: 0 | G166: 0 | H166: 0 | I166: 0 | J166: 0 | K166: 0 | M166: 0 | N166: 0 | P166: 0 | Q166: 0
A167: 74 | B167: 0 | C167: 7.19440478 | D167: 0 | E167: 0 | F167: 0 | G167: 0 | H167: 0 | I167: 0 | J167: 0 | K167: 0 | M167: 0 | N167: 0 | P167: 0 | Q167: 0
A168: 75 | B168: 0 | C168: 7.19440478 | D168: 0 | E168: 0 | F168: 0 | G168: 0 | H168: 0 | I168: 0 | J168: 0 | K168: 0 | M168: 0 | N168: 0 | P168: 0 | Q168: 0
A169: 76 | B169: 0 | C169: 7.19440478 | D169: 0 | E169: 0 | F169: 0 | G169: 0 | H169: 0 | I169: 0 | J169: 0 | K169: 0 | M169: 0 | N169: 0 | P169: 0 | Q169: 0
A170: 77 | B170: 0 | C170: 7.19440478 | D170: 0 | E170: 0 | F170: 0 | G170: 0 | H170: 0 | I170: 0 | J170: 0 | K170: 0 | M170: 0 | N170: 0 | P170: 0 | Q170: 0
A171: 78 | B171: 0 | C171: 7.19440478 | D171: 0 | E171: 0 | F171: 0 | G171: 0 | H171: 0 | I171: 0 | J171: 0 | K171: 0 | M171: 0 | N171: 0 | P171: 0 | Q171: 0
A172: 79 | B172: 0 | C172: 7.19440478 | D172: 0 | E172: 0 | F172: 0 | G172: 0 | H172: 0 | I172: 0 | J172: 0 | K172: 0 | M172: 0 | N172: 0 | P172: 0 | Q172: 0
A173: 80 | B173: 0.009124479996 | C173: 7.20352926 | D173: 0 | E173: 0 | F173: 0.01864190722 | G173: 0 | H173: 0 | I173: 0 | J173: 0 | K173: 0 | M173: 0 | N173: 0 | P173: 0 | Q173: 0
A174: 81 | B174: 0.1946555733 | C174: 7.398184833 | D174: 0 | E174: 0 | F174: 0.009124479996 | G174: 0 | H174: 0 | I174: 0 | J174: 0 | K174: 0 | M174: 0 | N174: 0 | P174: 0 | Q174: 0
A175: 82 | B175: 0.4379750398 | C175: 7.836159873 | D175: 0 | E175: 0 | F175: 0.1946555733 | G175: 0 | H175: 0 | I175: 0 | J175: 0 | K175: 0 | M175: 0 | N175: 0 | P175: 0 | Q175: 0
A176: 83 | B176: 0.6265476264 | C176: 8.462707499 | D176: 0 | E176: 0 | F176: 0.4379750398 | G176: 0 | H176: 0 | I176: 0 | J176: 0 | K176: 0 | M176: 0 | N176: 0 | P176: 0 | Q176: 0
A177: 84 | B177: 0.6660870397 | C177: 9.128794539 | D177: 0 | E177: 0 | F177: 0.6265476264 | G177: 0 | H177: 0 | I177: 0 | J177: 0 | K177: 0 | M177: 0 | N177: 0 | P177: 0 | Q177: 0
A178: 85 | B178: 0.6265476264 | C178: 9.755342165 | D178: 0 | E178: 0 | F178: 0.6660870397 | G178: 0 | H178: 0 | I178: 0 | J178: 0 | K178: 0 | M178: 0 | N178: 0 | P178: 0 | Q178: 0
A179: 86 | B179: 0.4470995198 | C179: 10.20244169 | D179: 0 | E179: 0 | F179: 0.6265476264 | G179: 0 | H179: 0 | I179: 0 | J179: 0 | K179: 0 | M179: 0 | N179: 0 | P179: 0 | Q179: 0
A180: 87 | B180: 0.2037800533 | C180: 10.40622174 | D180: 0 | E180: 0 | F180: 0.4470995198 | G180: 0 | H180: 0 | I180: 0 | J180: 0 | K180: 0 | M180: 0 | N180: 0 | P180: 0 | Q180: 0
A181: 88 | B181: 0.009124479996 | C181: 10.41534622 | D181: 0 | E181: 0 | F181: 0.2037800533 | G181: 0 | H181: 0 | I181: 0 | J181: 0 | K181: 0 | M181: 0 | N181: 0 | P181: 0 | Q181: 0
A182: 89 | B182: 0 | C182: 10.41534622 | D182: 0 | E182: 0 | F182: 0 | G182: 0 | H182: 0 | I182: 0 | J182: 0 | K182: 0 | M182: 0 | N182: 0 | P182: 0 | Q182: 0
A183: 90 | B183: 0 | C183: 10.41534622 | D183: 0 | E183: 0 | F183: 0 | G183: 0 | H183: 0 | I183: 0 | J183: 0 | K183: 0 | M183: 0 | N183: 0 | P183: 0 | Q183: 0
A184: 91 | B184: 0 | C184: 10.41534622 | D184: 0 | E184: 0 | F184: 0 | G184: 0 | H184: 0 | I184: 0 | J184: 0 | K184: 0 | M184: 0 | N184: 0 | P184: 0 | Q184: 0
A185: 92 | B185: 0 | C185: 10.41534622 | D185: 0 | E185: 0 | F185: 0 | G185: 0 | H185: 0 | I185: 0 | J185: 0 | K185: 0 | M185: 0 | N185: 0 | P185: 0 | Q185: 0
A186: 93 | B186: 0 | C186: 10.41534622 | D186: 0 | E186: 0 | F186: 0 | G186: 0 | H186: 0 | I186: 0 | J186: 0 | K186: 0 | M186: 0 | N186: 0 | P186: 0 | Q186: 0
A187: 94 | B187: 0 | C187: 10.41534622 | D187: 0 | E187: 0 | F187: 0 | G187: 0 | H187: 0 | I187: 0 | J187: 0 | K187: 0 | M187: 0 | N187: 0 | P187: 0 | Q187: 0
A188: 95 | B188: 0 | C188: 10.41534622 | D188: 0 | E188: 0 | F188: 0 | G188: 0 | H188: 0 | I188: 0 | J188: 0 | K188: 0 | M188: 0 | N188: 0 | P188: 0 | Q188: 0
A189: 96 | B189: 0 | C189: 10.41534622 | D189: 0 | E189: 0 | F189: 0 | G189: 0 | H189: 0 | I189: 0 | J189: 0 | K189: 0 | L189: =SUM(K166:K189) -> 0 | M189: 0 | N189: 0 | P189: 0 | Q189: 0
A190: 97 | B190: 0 | C190: 10.41534622 | D190: 0 | E190: 0 | F190: 0 | G190: 0 | H190: 0 | I190: 0 | J190: 0 | K190: 0 | M190: 0 | N190: 0 | P190: 0 | Q190: 0
A191: 98 | B191: 0 | C191: 10.41534622 | D191: 0 | E191: 0 | F191: 0 | G191: 0 | H191: 0 | I191: 0 | J191: 0 | K191: 0 | M191: 0 | N191: 0 | P191: 0 | Q191: 0
A192: 99 | B192: 0 | C192: 10.41534622 | D192: 0 | E192: 0 | F192: 0 | G192: 0 | H192: 0 | I192: 0 | J192: 0 | K192: 0 | M192: 0 | N192: 0 | P192: 0 | Q192: 0
A193: 100 | B193: 0 | C193: 10.41534622 | D193: 0 | E193: 0 | F193: 0 | G193: 0 | H193: 0 | I193: 0 | J193: 0 | K193: 0 | M193: 0 | N193: 0 | P193: 0 | Q193: 0
A194: 101 | B194: 0 | C194: 10.41534622 | D194: 0 | E194: 0 | F194: 0 | G194: 0 | H194: 0 | I194: 0 | J194: 0 | K194: 0 | M194: 0 | N194: 0 | P194: 0 | Q194: 0
A195: 102 | B195: 0 | C195: 10.41534622 | D195: 0 | E195: 0 | F195: 0 | G195: 0 | H195: 0 | I195: 0 | J195: 0 | K195: 0 | M195: 0 | N195: 0 | P195: 0 | Q195: 0
A196: 103 | B196: 0 | C196: 10.41534622 | D196: 0 | E196: 0 | F196: 0 | G196: 0 | H196: 0 | I196: 0 | J196: 0 | K196: 0 | M196: 0 | N196: 0 | P196: 0 | Q196: 0
A197: 104 | B197: 0.009747297062 | C197: 10.42509352 | D197: 0 | E197: 0 | F197: 0.009124479996 | G197: 0 | H197: 0 | I197: 0 | J197: 0 | K197: 0 | M197: 0 | N197: 0 | P197: 0 | Q197: 0
A198: 105 | B198: 0.2436824265 | C198: 10.66877594 | D198: 0 | E198: 0 | F198: 0.009747297062 | G198: 0 | H198: 0 | I198: 0 | J198: 0 | K198: 0 | M198: 0 | N198: 0 | P198: 0 | Q198: 0
A199: 106 | B199: 0.467870259 | C199: 11.1366462 | D199: 0 | E199: 0 | F199: 0.2436824265 | G199: 0 | H199: 0 | I199: 0 | J199: 0 | K199: 0 | M199: 0 | N199: 0 | P199: 0 | Q199: 0
A200: 107 | B200: 0.6140797149 | C200: 11.75072592 | D200: 0 | E200: 0 | F200: 0.467870259 | G200: 0 | H200: 0 | I200: 0 | J200: 0 | K200: 0 | M200: 0 | N200: 0 | P200: 0 | Q200: 0
A201: 108 | B201: 0.6855598933 | C201: 12.43628581 | D201: 0 | E201: 0 | F201: 0.6140797149 | G201: 0 | H201: 0 | I201: 0 | J201: 0 | K201: 0 | M201: 0 | N201: 0 | P201: 0 | Q201: 0
A202: 109 | B202: 0.6043324178 | C202: 13.04061823 | D202: 0 | E202: 0 | F202: 0.6855598933 | G202: 0 | H202: 0 | I202: 0 | J202: 0 | K202: 0 | M202: 0 | N202: 0 | P202: 0 | Q202: 0
A203: 110 | B203: 0.4061373776 | C203: 13.4467556 | D203: 0 | E203: 0 | F203: 0.6043324178 | G203: 0 | H203: 0 | I203: 0 | J203: 0 | K203: 0 | M203: 0 | N203: 0 | P203: 0 | Q203: 0
A204: 111 | B204: 0.162454951 | C204: 13.60921056 | D204: 0 | E204: 0 | F204: 0.4061373776 | G204: 0 | H204: 0 | I204: 0 | J204: 0 | K204: 0 | M204: 0 | N204: 0 | P204: 0 | Q204: 0
A205: 112 | B205: 0.009747297062 | C205: 13.61895785 | D205: 0 | E205: 0 | F205: 0.162454951 | G205: 0 | H205: 0 | I205: 0 | J205: 0 | K205: 0 | M205: 0 | N205: 0 | P205: 0 | Q205: 0
A206: 113 | B206: 0 | C206: 13.61895785 | D206: 0 | E206: 0 | F206: 0 | G206: 0 | H206: 0 | I206: 0 | J206: 0 | K206: 0 | M206: 0 | N206: 0 | P206: 0 | Q206: 0
A207: 114 | B207: 0 | C207: 13.61895785 | D207: 0 | E207: 0 | F207: 0 | G207: 0 | H207: 0 | I207: 0 | J207: 0 | K207: 0 | M207: 0 | N207: 0 | P207: 0 | Q207: 0
A208: 115 | B208: 0 | C208: 13.61895785 | D208: 0 | E208: 0 | F208: 0 | G208: 0 | H208: 0 | I208: 0 | J208: 0 | K208: 0 | M208: 0 | N208: 0 | P208: 0 | Q208: 0
A209: 116 | B209: 0 | C209: 13.61895785 | D209: 0 | E209: 0 | F209: 0 | G209: 0 | H209: 0 | I209: 0 | J209: 0 | K209: 0 | M209: 0 | N209: 0 | P209: 0 | Q209: 0
A210: 117 | B210: 0 | C210: 13.61895785 | D210: 0 | E210: 0 | F210: 0 | G210: 0 | H210: 0 | I210: 0 | J210: 0 | K210: 0 | M210: 0 | N210: 0 | P210: 0 | Q210: 0
A211: 118 | B211: 0 | C211: 13.61895785 | D211: 0 | E211: 0 | F211: 0 | G211: 0 | H211: 0 | I211: 0 | J211: 0 | K211: 0 | M211: 0 | N211: 0 | P211: 0 | Q211: 0
A212: 119 | B212: 0 | C212: 13.61895785 | D212: 0 | E212: 0 | F212: 0 | G212: 0 | H212: 0 | I212: 0 | J212: 0 | K212: 0 | M212: 0 | N212: 0 | P212: 0 | Q212: 0
A213: 120 | B213: 0 | C213: 13.61895785 | D213: 0 | E213: 0 | F213: 0 | G213: 0 | H213: 0 | I213: 0 | J213: 0 | K213: 0 | L213: =SUM(K190:K213) -> 0 | M213: 0 | N213: 0 | P213: 0 | Q213: 0
A214: 121 | B214: 0 | C214: 13.61895785 | D214: 0 | E214: 0 | F214: 0 | G214: 0 | H214: 0 | I214: 0 | J214: 0 | K214: 0 | M214: 0 | N214: 0 | P214: 0 | Q214: 0
A215: 122 | B215: 0 | C215: 13.61895785 | D215: 0 | E215: 0 | F215: 0 | G215: 0 | H215: 0 | I215: 0 | J215: 0 | K215: 0 | M215: 0 | N215: 0 | P215: 0 | Q215: 0
A216: 123 | B216: 0 | C216: 13.61895785 | D216: 0 | E216: 0 | F216: 0 | G216: 0 | H216: 0 | I216: 0 | J216: 0 | K216: 0 | M216: 0 | N216: 0 | P216: 0 | Q216: 0
A217: 124 | B217: 0 | C217: 13.61895785 | D217: 0 | E217: 0 | F217: 0 | G217: 0 | H217: 0 | I217: 0 | J217: 0 | K217: 0 | M217: 0 | N217: 0 | P217: 0 | Q217: 0
A218: 125 | B218: 0 | C218: 13.61895785 | D218: 0 | E218: 0 | F218: 0 | G218: 0 | H218: 0 | I218: 0 | J218: 0 | K218: 0 | M218: 0 | N218: 0 | P218: 0 | Q218: 0
... 4282 more rows

Sheet Beslissingboom (hidden)
A1: Water fysiek | C1: Temp,
C2: Turbidity
A4: Group | B4: Subgroup | C4: criteria | D4: fct | E4: Effect | F4: Klass | H4: groof zuivering | I4: fijn zuivering | J4: fixatie | K4: osmose membrane | L4: Zinken - centrifugeren | M4: afbreking door straling | N4: chemische afbreking | P4: Zuiveren | Q4: toxiek | R4: straling remmer | S4: agglomereren
A5: Substraat | B5: Mineraal | C5: Steenwol | F5: 1
B6: Mineraal | C6: Zand | F6: 2 | H6: x | L6: x | P6: 1
B7: Synthetic | C7: Kunststof | F7: 1
B8: Organische | C8: Kokos/Veen | F8: 2 | H8: x | I8: x | L8: x | P8: 1
B9: Organische | C9: Potgrond | F9: 2 | H9: x | L9: x | P9: 1 | R9: 1 | S9: 1
B10: Mix | C10: Grond | F10: 3
A12: Stoffen | B12: vast | C12: Zand | H12: x | P12: 1
B13: vast | C13: Biochar | I13: x | P13: 1 | R13: 1
B14: vloeibaar | C14: Olie | K14: x | Q14: 1 | S14: 1
B15: vast | C15: roots | D15: gewas | P15: 1
A17: Bemesting | B17: C/N | C17: C-tot
A18: Bemesting | B18: C/N | C18: N-tot
A19: Bemesting | C19: pH
A20: Bemesting | B20: trace | C20: Fe | D20: redox, pH<8 | R20: 1
A21: Bemesting | B21: trace | C21: Mn | D21: redox, pH | R21: 1
A22: Bemesting | B22: trace | C22: Zn | D22: redox, pH | R22: 1
A23: Bemesting | B23: trace | C23: B | D23: redox, pH | R23: 1
A24: Bemesting | B24: trace | C24: Cu | D24: redox, pH | R24: 1
A25: Bemesting | B25: trace | C25: Mo | D25: redox, pH | R25: 1
A26: Bemesting | B26: trace | C26: Cr | D26: redox, 4>pH<8 | Q26: 1, ph<4 | R26: 1
A27: Bemesting | B27: trace | C27: Pb | D27: redox, pH | Q27: 1 | R27: 1
A28: Bemesting | B28: neerslag | C28: EC
A29: Bemesting | B29: neerslag | C29: Ca, Mg
P30: Zuiveren | Q30: toxiek | R30: straling remmer | S30: agglomereren
A31: biologie | C31: Algue | D31: pH, light | E31: pH | R31: 1 | S31: 1
A32: biologie | C32: Schimel | D32: C/N, pH | S32: 1
A33: biologie | C33: bacterie | D33: C/N, pH | S33: 1
H35: Org | O35: lengt | P35: pathogen
A36: beschrmingsmiddelen | C36: bio zuurstofverbruik BZV)
A37: beschrmingsmiddelen | C37: chemische zuurstof verbinding (CZV)
A38: beschrmingsmiddelen | C38: poly-armoatische koolstoffen (PAK)
A39: beschrmingsmiddelen | C39: adsorbeerbare gehalogeneerde verbindingen (AOX)
A40: beschrmingsmiddelen | C40: extraheerbare gehalogeneerd verbindingen (EOX)
A41: beschrmingsmiddelen | C41: vluchtische halogeenverbindingen (VOX
A42: beschrmingsmiddelen | C42: aromatische koolwaterstoffen benzeen (BTEX)
A45: n° | B45: apparaat | C45: Fysiek zuivering | D45: Oxydatie | E45: Katalysor | F45: Met UV
A46: 1 | B46: System 1 | D46: 1
A47: 2 | B47: System 2 | D47: 1 | E47: 1 | F47: 1
A48: 3 | B48: System 3 | D48: 1 | F48: 1
A49: 4 | B49: System 3 | C49: 1 | D49: 2 | F49: 2
A50: 4 | B50: System 3 | C50: 1 | D50: 2
C52: effectief | E52: schadelijk
A53: Vervuiling | C53: Fysiek zuivering | D53: Oxydatie | E53: Fysiek zuivering | F53: Oxydatie | G53: Katalysor | H53: Met UV | I53: TOC | J53: Redox | K53: pH buffer
A54: Steenwol | B54: substraat
A55: Zand | B55: substraat | C55: 1 | H55: 1
A56: Kokos/Veen | B56: substraat | C56: 1 | H56: 1
A57: Potgrond | B57: substraat | C57: 1 | H57: 1
A58: Grond | B58: substraat | C58: 1 | H58: 1
A59: Zand | B59: stoffen | C59: 1 | H59: 1
A60: Olie | B60: stoffen | D60: 1 | H60: 1
A61: roots | B61: stoffen | C61: 1 | H61: 1
A63: Fe | B63: bemesting | H63: 1
A64: Cr | B64: bemesting | H64: 1
A65: Algue | B65: micro-organismen | D65: 1 | H65: 3
A66: Schimel | B66: micro-organismen | D66: 1 | H66: 2
A67: bacterie | B67: micro-organismen | D67: 1 | H67: 1
A68: (PAK) poly-armoatische koolstoffen | B68: beschrmingsmiddelen | D68: 1 | H68: 2
A69: (AOX) adsorbeerbare gehalogeneerde verbindingen | B69: beschrmingsmiddelen | D69: 1 | H69: 2
A70: (EOX) extraheerbare gehalogeneerd verbindingen | B70: beschrmingsmiddelen | D70: 1 | H70: 1
A71: (VOX) vluchtische halogeenverbindingen | B71: beschrmingsmiddelen | D71: 1 | H71: 1
A72: (BTEX) aromatische koolwaterstoffen benzeen | B72: beschrmingsmiddelen | D72: 1 | H72: 3
A73: berekening factors
A74: (CZV) chemische zuurstof verbinding | B74: beschrmingsmiddelen | G74: 1
A75: EC | B75: bemesting | G75: 1
A76: pH | E76: 1
A77: C/N | E77: 1
A78: TOC

Sheet Apparaat beschrijven (hidden)
B1: Eenheid | C1: Agrozone
A2: Techniek | C2: ozon
A3: Optimum | B3: m3/uur | C3: 0.7 | D3: 1.2 | E3: 3 | F3: 4 | G3: 6 | H3: 10
A4: Oppervlak | B4: m2
A5: Prijs | B5: €/ha
A6: Kracht | B6: kWh/m3
A7: Gebruikskosten | B7: €/m3
A8: Onderhoud | B8: €/jaar
B10: Eenheid | C10: Enthoven
A11: Techniek | C11: H2O2+UV
A12: Optimum | B12: m3/uur | C12: 0.53 | D12: 0.7 | E12: 1.05 | F12: 1.4 | G12: 1.58 | H12: 2.1 | I12: 2.63 | J12: 2.8 | K12: 3.18 | L12: 3.5
A13: Oppervlak | B13: m2
A14: Prijs | B14: €/ha
A15: Kracht | B15: kWh/m3
A16: Gebruikskosten | B16: €/m3
A17: Onderhoud | B17: €/jaar
B19: Eenheid | C19: HortiMaX
A20: Techniek | C20: H2O2+UV
A21: Optimum | B21: m3/uur | C21: 0.4 | D21: 0.8 | E21: 1.2 | F21: 1.6 | G21: 2.4 | H21: 3.2 | I21: 3.6 | J21: 4.8
A22: Oppervlak | B22: m2
A23: Prijs | B23: €/ha
A24: Kracht | B24: kWh/m3
A25: Gebruikskosten | B25: €/m3
A26: Onderhoud | B26: €/jaar
B28: Eenheid | C28: WaterIQ
A29: Techniek | C29: H2O2+O3+katalysator
A30: Optimum | B30: m3/uur | C30: 0.48 | D30: 0.6 | E30: 1.5 | F30: 2.5 | G30: 5 | H30: 10 | I30: 20 | J30: 30
A31: Oppervlak | B31: m2
A32: Prijs | B32: €/ha
A33: Kracht | B33: kWh/m3
A34: Gebruikskosten | B34: €/m3
A35: Onderhoud | B35: €/jaar
